[Event "Alef Super Stars Standard 2023"]
[Site "Almamsha"]
[Date "2023.11.27"]
[Round "1.1"]
[White "Nihal Sarin"]
[Black "Salem, A.R. Saleh"]
[Result "1-0"]
[ECO "E60"]
[WhiteElo "2692"]
[BlackElo "2635"]
[Annotator "TA"]
[PlyCount "57"]
[EventDate "2023.11.27"]
[EventType "tourn"]
[EventCountry "UAE"]
[SourceTitle "playchess.com"]
[Source "ChessBase"]
[SourceQuality "1"]
[TimeControl "40/5400+30:1800+30"]

{[%evp 9,57,29,23,15,22,20,15,19,22,16,20,14,20,13,40,47,59,63,69,65,78,66,87,94,110,95,117,112,147,143,141,149,147,159,145,131,130,124,332,332,350,341,343,340,743,768,764,753,744,726]} 1. d4 {[%emt 0:00:30]} Nf6 {[%emt 0:00:04]} 2. c4 {[%emt 0:00:00]} g6 {[%emt 0:00:05]} 3. h4 {[%emt 0:00:00]} Bg7 {[%emt 0:01:09]} 4. Nc3 {[%emt 0:00:12]} d6 {[%emt 0:01:02]} 5. e4 {[%emt 0:00:23]} Nc6 {[%emt 0:00:48]} 6. d5 {[%emt 0:00:44] E60: King's Indian: Unusual lines and Fianchetto Variation without Nc3.} Ne5 {[%emt 0:00:06]} 7. Be2 {[%emt 0:00:07]} h5 {[%emt 0:00:26]} 8. Nf3 {[%emt 0:00:35] The position is equal.} Nxf3+ {[%emt 0:01:04]} 9. gxf3 {[%emt 0:00:09]} c6 {[%emt 0:02:18]} 10. Be3 {[%emt 0:03:22]} O-O {[%emt 0:01:16]} 11. Qd2 {[%emt 0:01:06]} cxd5 {[%emt 0:13:13]} 12. cxd5 {[%emt 0:01:42] [#]} e6 $146 {[%emt 0:10:06]} ({Predecessor:} 12... a6 13. a4 e6 14. Bc4 exd5 15. Bxd5 Nxd5 16. Nxd5 Kh7 17. Bb6 Qd7 18. Bd4 Rb8 19. Bxg7 Kxg7 20. Qd4+ Kh6 21. Qe3+ Kg7 22. Qd4+ Kh6 23. Qe3+ Kg7 24. Qa7 {1-0 Ashwath,R (2340)-De Winter,A (2390) Hoogeveen op 25th 2022 (4)}) 13. dxe6 $1 {[%emt 0:04:00]} Bxe6 {[%emt 0:01:36]} 14. Rd1 {[%emt 0:04:42]} d5 {[%emt 0:16:48][%mdl 64] [#] Deflection} 15. exd5 {[%emt 0:25:51] White is more active.} Bf5 {[%emt 0:03:42]} 16. Kf1 {[%emt 0:01:19]} Re8 {[%emt 0:04:30]} 17. Kg2 {[%emt 0:01:15]} Rc8 {[%emt 0:02:30]} 18. Bb5 {[%emt 0:04:49]} (18. Bxa7 b6 19. Bd3 Bxd3 20. Qxd3 Ra8 $15) 18... Bd7 {[%emt 0:13:45]} 19. Bxd7 {[%emt 0:04:03]} (19. Bxa7 $6 b6 $11) 19... Nxd7 {[%emt 0:00:05]} 20. d6 {[%emt 0:02:54]} ({Weaker is} 20. Bxa7 Bxc3 21. bxc3 b6 $17) 20... Bxc3 {[%emt 0:04:08]} 21. bxc3 {[%emt 0:00:14]} Re6 {[%emt 0:07:00]} 22. Bg5 {[%emt 0:13:57]} ({Worse is} 22. Bxa7 b6 23. Rhe1 Ra8 24. Rxe6 fxe6 25. Bxb6 Qxb6 $11) 22... Qa5 {[%emt 0:00:05]} 23. Rhe1 {[%emt 0:00:16] Threatens to win with Rxe6.} Rc6 $2 {[%emt 0:02:37] Black cannot hold the game after this.} (23... b6 $16 {keeps fighting.} 24. Rxe6 fxe6) 24. Rxe6 $18 {[%emt 0:05:31]} fxe6 {[%emt 0:00:08]} 25. Qe3 {[%emt 0:06:00]} Kf7 {[%emt 0:06:56]} 26. Rd4 {[%emt 0:00:27] [#] Black must now prevent Rf4+.} Rc5 $2 {[%emt 0:04:07]} (26... e5 27. Rb4 Qa6) 27. Be7 {[%emt 0:13:10] White wants to mate with Qh6. White is clearly winning.} Rf5 {[%emt 0:02:44]} 28. Qh6 {[%emt 0:02:26] Qh7+ would kill now.} Qe5 {[%emt 0:00:04]} 29. Rc4 {[%emt 0:00:04] Weighted Error Value: White=0.03 (flawless) /Black=0.26 (precise)} 1-0

[Event "Alef Super Stars Standard 2023"]
[Site "Almamsha"]
[Date "2023.11.27"]
[Round "1.2"]
[White "Yu, Yangyi"]
[Black "Sjugirov, Sanan"]
[Result "1-0"]
[ECO "B12"]
[WhiteElo "2720"]
[BlackElo "2703"]
[Annotator "TA"]
[PlyCount "88"]
[EventDate "2023.11.27"]
[EventType "tourn"]
[EventCountry "UAE"]
[SourceTitle "playchess.com"]
[Source "ChessBase"]
[SourceQuality "1"]
[TimeControl "40/5400+30:1800+30"]

{[%evp 9,88,6,29,23,30,16,35,22,26,24,24,23,27,18,25,13,37,36,44,43,52,45,75,57,73,78,81,41,40,41,45,41,45,44,61,54,54,36,58,51,71,60,57,64,66,53,71,70,90,72,70,75,125,69,187,184,195,190,183,192,182,170,222,235,512,512,500,396,682,670,652,672,649,552,475,411,1073,1051,1424,1424,29997]} 1. e4 {[%emt 0:00:04][%cal Be2e4,Be4e5][%mdl 32]} c6 {[%emt 0:00:18]} 2. d4 {[%emt 0:00:35]} d5 {[%emt 0:00:06]} 3. e5 {[%emt 0:01:11]} Bf5 {[%emt 0:00:11]} 4. Be3 {[%emt 0:03:27]} e6 {[%emt 0:05:07]} 5. Nd2 {[%emt 0:01:54]} Qb6 {[%emt 0:34:10]} 6. Nb3 {[%emt 0:02:41] B12: Caro-Kann: Advance Variation.} Nd7 {[%emt 0:02:39]} 7. Nf3 {[%emt 0:19:38][%cal Bg1f3,Bf3e1,Be1d3][%mdl 32]} a5 {[%emt 0:05:53]} 8. a4 $1 {[%emt 0:04:07] White is slightly better.} h6 {[%emt 0:01:37]} 9. Be2 {[%emt 0:02:34]} Ne7 {[%emt 0:00:21]} 10. O-O {[%emt 0:01:43]} Bh7 {[%emt 0:00:57] [#]} 11. Bd2 $146 {[%emt 0:02:14]} ({Predecessor:} 11. g4 Qc7 12. Nh4 c5 13. dxc5 Nc6 14. f4 g5 15. Nf3 gxf4 16. Bxf4 Nxc5 17. Nbd4 {½-½ Shabalov,A (2606)-Simutowe,A (2419) Chicago op 16th 2007 (4)}) 11... Nc8 {[%emt 0:25:44]} 12. Ne1 {[%emt 0:03:01]} Bb4 {[%emt 0:01:31]} 13. c3 {[%emt 0:05:47]} Be7 {[%emt 0:00:18]} 14. Bd3 {[%emt 0:00:08]} Bxd3 {[%emt 0:00:20]} 15. Nxd3 {[%emt 0:00:08]} Qa6 {[%emt 0:01:48]} 16. Be3 {[%emt 0:07:19]} Ncb6 {[%emt 0:00:35]} 17. f4 {[%emt 0:05:21]} g6 {[%emt 0:02:54]} 18. Bf2 {[%emt 0:00:42]} h5 {[%emt 0:01:39]} 19. Qc2 {[%emt 0:03:55]} Rc8 {[%emt 0:02:42]} 20. h3 {[%emt 0:01:14]} Qa7 {[%emt 0:02:31]} 21. Rfd1 {[%emt 0:03:44]} Nc4 {[%emt 0:00:29]} 22. Nbc5 {[%emt 0:01:48]} Ncb6 {[%emt 0:00:37]} 23. Rab1 {[%emt 0:05:02]} Ra8 {[%emt 0:02:20]} 24. b3 {[%emt 0:02:19]} Rd8 {[%emt 0:03:38]} 25. c4 {[%emt 0:02:31]} Nxc5 {[%emt 0:00:53]} 26. Nxc5 {[%emt 0:00:22]} Rg8 {[%emt 0:01:24]} 27. Qe2 {[%emt 0:08:09]} Kf8 {[%emt 0:01:28]} (27... dxc4 $2 28. bxc4 Bxc5 29. dxc5 $18) 28. Nd3 {[%emt 0:02:57][%cal Of4f5] White is more active. White now steadily converts the win.} Nd7 {[%emt 0:00:44]} (28... dxc4 $2 29. bxc4 Nxc4 30. d5 $18) 29. Qf3 {[%emt 0:04:23]} Ke8 {[%emt 0:00:41]} 30. Rdc1 {[%emt 0:00:16]} Nb8 {[%emt 0:00:57] [#]} (30... Rh8 $142) 31. c5 {[%emt 0:02:01]} (31. f5 $1 $16 {[%cal Rf5e6] And now fxe6 would win.} gxf5 32. Qxh5) 31... b6 {[%emt 0:00:24]} (31... Na6 $14) 32. b4 $18 {[%emt 0:00:53]} axb4 {[%emt 0:00:38]} 33. Rxb4 {[%emt 0:00:02]} Nd7 {[%emt 0:00:40]} 34. cxb6 {[%emt 0:02:51][%mdl 64] Discovered Attack} Nxb6 {[%emt 0:00:05]} 35. Nc5 {[%emt 0:00:02] Qb3 is the strong threat.} Bxc5 {[%emt 0:00:56]} (35... Nd7 $142) 36. Rxc5 {[%emt 0:00:14] Hoping for Qb3.} ({Not} 36. dxc5 Nc4 $14) 36... Kd7 $2 {[%emt 0:00:23] Black is weak on the dark squares} (36... Nc4 37. Rxc6 Kf8) 37. a5 {[%emt 0:01:52]} Na8 {[%emt 0:00:04]} 38. Qc3 {[%emt 0:01:22]} Qa6 {[%emt 0:00:15]} (38... Qc7 39. Kh2 Rb8) 39. Qb3 {[%emt 0:00:36]} Rc8 {[%emt 0:00:24]} 40. Bh4 {[%emt 0:00:31]} Rc7 {[%emt 0:01:22]} 41. Rb8 {[%emt 0:10:02]} Rcc8 {[%emt 0:11:37]} 42. Rxc8 {[%emt 0:02:55]} Qxc8 {[%emt 0:11:02]} (42... Kxc8 $142 43. Qa4 Kb7) 43. Rc1 {[%emt 0:03:02]} Nc7 {[%emt 0:09:38] [#]} 44. Rxc6 $3 {[%emt 0:16:53][%mdl 512] Rd6+ would kill now.} Kxc6 {[%emt 0:00:30] An entertaining game by Yu.   Weighted Error Value: White=0.15 (very precise) /Black=0.31} (44... Qa8 45. Rd6+) 1-0

[Event "Alef Super Stars Standard 2023"]
[Site "Almamsha"]
[Date "2023.11.28"]
[Round "2.1"]
[White "Salem, A.R. Saleh"]
[Black "Sjugirov, Sanan"]
[Result "1/2-1/2"]
[ECO "E04"]
[WhiteElo "2635"]
[BlackElo "2703"]
[Annotator "TA"]
[PlyCount "50"]
[EventDate "2023.11.27"]
[EventType "tourn"]
[EventCountry "UAE"]
[SourceTitle "playchess.com"]
[Source "ChessBase"]
[SourceQuality "1"]
[TimeControl "40/5400+30:1800+30"]

{[%evp 13,50,-20,-22,-29,-49,-53,-45,-41,-54,-80,-56,-46,0,7,0,0,0,0,11,0,0,0,0,0,0,-108,0,0,0,0,0,0,0,0,0,0,0,0,0]} 1. d4 {[%emt 0:06:32]} Nf6 {[%emt 0:00:23]} 2. c4 {[%emt 0:00:08]} e6 {[%emt 0:00:12]} 3. Nf3 {[%emt 0:00:09]} d5 {[%emt 0:01:16]} 4. Nc3 {[%emt 0:00:12]} c6 {[%emt 0:05:26]} 5. g3 {[%emt 0:00:25]} dxc4 {[%emt 0:00:36]} 6. Bg2 {[%emt 0:00:11]} b5 {[%emt 0:06:18]} 7. O-O {[%emt 0:00:48]} Bb7 {[%emt 0:05:07]} 8. e4 {[%emt 0:00:10] E04: Open Catalan: 5 Nf3.} Be7 {[%emt 0:04:11]} 9. h4 {[%emt 0:00:42] [#]} Nbd7 $146 {[%emt 0:06:53]} ({Predecessor:} 9... h6 10. Re1 a6 11. b3 b4 12. Na4 c3 13. Ne5 c5 14. Nxc5 Bxc5 15. dxc5 Qxd1 16. Rxd1 {0-1 Shlyakhtenko,R (2427)-Jacobson,A (2301) Las Vegas National op 2023 (5)}) 10. e5 {[%emt 0:00:39] Black is slightly better.} Nd5 {[%emt 0:00:29]} 11. Ng5 {[%emt 0:00:09]} Qb6 {[%emt 0:12:21]} 12. a4 {[%emt 0:00:23][%cal Ba2a4,Ba4b5][%mdl 32]} Nxc3 {[%emt 0:23:24]} (12... h6 $15 13. Nh3 b4) 13. bxc3 $11 {[%emt 0:00:17]} c5 {[%emt 0:00:31] And now ...Bxg2 would win.} 14. Bxb7 {[%emt 0:44:43]} Qxb7 {[%emt 0:00:06]} 15. axb5 {[%emt 0:00:04]} cxd4 {[%emt 0:01:58]} 16. cxd4 {[%emt 0:00:06]} Bxg5 {[%emt 0:04:10]} 17. Bxg5 {[%emt 0:09:28]} O-O {[%emt 0:25:39]} 18. Qg4 $1 {[%emt 0:01:48]} Kh8 {[%emt 0:00:44]} 19. Ra6 {[%emt 0:08:34]} (19. Rfc1 $11 {keeps the balance.}) 19... Qxb5 {[%emt 0:04:08]} (19... Rfc8 $17 20. Rfa1 Nb6) 20. Rd6 $1 {[%emt 0:00:16] The position is equal.} c3 {[%emt 0:10:36] [#] ...Nb6 would be deadly.} 21. h5 $1 {[%emt 0:12:05] Strongly threatening h6.} h6 {[%emt 0:01:42]} 22. Bxh6 $1 {[%emt 0:00:20]} gxh6 {[%emt 0:00:28]} 23. Qf4 {[%emt 0:00:04]} Kg7 {[%emt 0:01:02] White must now prevent ...Rfc8.} 24. Qg4+ $1 {[%emt 0:14:17]} Kh8 {[%emt 0:02:54] [#] aiming for ...Nb6.} 25. Qf4 {[%emt 0:00:05]} Kg7 {[%emt 0:00:05] Weighted Error Value: White=0.11 (very precise) /Black=0.13 (very precise)} 1/2-1/2

[Event "Alef Super Stars Standard 2023"]
[Site "Almamsha"]
[Date "2023.11.28"]
[Round "2.2"]
[White "Nihal Sarin"]
[Black "Yu, Yangyi"]
[Result "1/2-1/2"]
[ECO "C65"]
[WhiteElo "2692"]
[BlackElo "2720"]
[Annotator "TA"]
[PlyCount "60"]
[EventDate "2023.11.27"]
[EventType "tourn"]
[EventCountry "UAE"]
[SourceTitle "playchess.com"]
[Source "ChessBase"]
[SourceQuality "1"]
[TimeControl "40/5400+30:1800+30"]

{[%evp 12,60,21,14,10,18,15,18,2,0,5,0,0,-8,-8,-23,-11,-16,-12,-19,-11,-31,-21,-31,0,0,-3,-28,-43,-30,-24,-17,-33,-33,-31,-32,0,-61,-50,-62,-44,-29,-19,-13,0,0,59,60,45,0,0]} 1. e4 {[%emt 0:00:30]} e5 {[%emt 0:00:13]} 2. Nf3 {[%emt 0:00:00]} Nc6 {[%emt 0:00:22]} 3. Bb5 {[%emt 0:02:23]} Nf6 {[%emt 0:00:16]} 4. d3 {[%emt 0:09:34]} Bc5 {[%emt 0:00:23]} 5. c3 {[%emt 0:00:07]} O-O {[%emt 0:00:15]} 6. O-O {[%emt 0:01:55]} d6 {[%emt 0:03:41]} 7. h3 $1 {[%emt 0:04:01][%mdl 4] 7.h3 is the recent fashion.} a6 {[%emt 0:09:28] C65: Ruy Lopez: Berlin Defence (3...Nf6), unusual lines and 4 0-0 Bc5.} 8. Bxc6 {[%emt 0:05:18]} bxc6 {[%emt 0:00:10]} 9. d4 {[%emt 0:00:10]} Bb6 {[%emt 0:02:39]} 10. Re1 {[%emt 0:18:22]} h6 {[%emt 0:04:06] Prevents Bg5.} 11. dxe5 {[%emt 0:16:00]} dxe5 {[%emt 0:00:18]} 12. Nbd2 {[%emt 0:00:05] [#]} Re8 $146 {[%emt 0:02:17]} ({Predecessor:} 12... Qd3 13. Qe2 Qxe2 14. Rxe2 Re8 15. Nc4 Nd7 16. Be3 f6 17. a4 a5 18. b4 Ba6 19. Nxb6 Nxb6 {0-1 Kaufman,R (2202)-Domalchuk Jonasson,A (2300) Titled Tuesday intern op 13th Sep Late blitz 2022 (5)}) 13. Qc2 {[%emt 0:05:53]} Nh5 {[%emt 0:02:39][%cal Oc8h3]} 14. Nc4 {[%emt 0:02:11]} Qf6 {[%emt 0:02:16][%cal Oc8h3] White should prevent ...Bxh3!} 15. Nxb6 {[%emt 0:00:37]} (15. Nh2 {is interesting.} Qg6 16. Qd3 a5 17. Qf3) 15... cxb6 {[%emt 0:00:11]} 16. Qe2 {[%emt 0:00:05]} c5 {[%emt 0:06:50]} 17. Be3 {[%emt 0:11:08]} Nf4 {[%emt 0:01:36]} 18. Bxf4 {[%emt 0:00:18]} exf4 {[%emt 0:00:06]} 19. Rad1 {[%emt 0:00:48]} (19. e5 $5 {[%cal Re5f6]} Qg6 20. Nh4 $11) 19... Bb7 {[%emt 0:02:49]} 20. Nd2 {[%emt 0:08:23][%cal Bf3d2,Bd2f1,Bf1g3][%mdl 32]} Rad8 {[%emt 0:00:26]} 21. f3 {[%emt 0:00:28]} Bc8 {[%emt 0:01:22][%cal Bb7c8,Bc8e6,Be6c4][%mdl 32]} 22. a3 {[%emt 0:05:28]} Qg6 {[%emt 0:25:02]} 23. Kh1 {[%emt 0:02:19]} Qc6 {[%emt 0:15:06]} 24. Kg1 {[%emt 0:01:26]} (24. e5 $11) 24... Be6 $15 {[%emt 0:02:13]} 25. Nf1 {[%emt 0:02:14]} Qa4 {[%emt 0:02:36] Threatens to win with ...Bc4.} 26. Rd2 {[%emt 0:00:05]} Bc4 {[%emt 0:02:58]} 27. Qd1 {[%emt 0:00:24]} Bb3 {[%emt 0:00:49]} 28. Qc1 {[%emt 0:00:05]} g5 {[%emt 0:03:06]} (28... Bc4 $1 $11) 29. g3 $1 $14 {[%emt 0:00:05]} fxg3 {[%emt 0:03:56]} 30. Nxg3 {[%emt 0:00:05][%cal Oh3h4]} Qc6 {[%emt 0:01:14] Weighted Error Value: White=0.09 (flawless) /Black=0.09 (flawless)} 1/2-1/2

[Event "Alef Super Stars Standard 2023"]
[Site "Almamsha"]
[Date "2023.11.29"]
[Round "3.1"]
[White "Yu, Yangyi"]
[Black "Salem, A.R. Saleh"]
[Result "1-0"]
[ECO "C54"]
[WhiteElo "2720"]
[BlackElo "2635"]
[Annotator "TA"]
[PlyCount "149"]
[EventDate "2023.11.27"]
[EventType "tourn"]
[EventCountry "UAE"]
[SourceTitle "playchess.com"]
[Source "ChessBase"]
[SourceQuality "1"]
[TimeControl "40/5400+30:1800+30"]

{[%evp 13,149,10,18,10,20,8,13,10,32,4,53,61,49,57,46,58,48,37,88,52,97,89,96,95,148,148,140,147,165,113,126,89,152,131,137,134,120,135,139,135,150,129,164,165,169,164,172,163,179,167,185,168,175,158,185,187,183,179,185,185,214,168,168,168,168,168,162,139,168,168,160,139,139,139,139,139,170,171,202,218,212,183,183,183,183,165,193,193,193,193,193,193,193,193,193,193,193,193,193,193,193,193,193,193,194,176,279,264,264,264,264,264,359,349,328,264,264,181,231,211,266,266,266,266,462,444,466,264,264,258,550,537,488,488,1850,1703,6091,5410]} 1. e4 {[%emt 0:00:09]} e5 {[%emt 0:05:42]} 2. Nf3 {[%emt 0:00:10]} Nc6 {[%emt 0:00:07]} 3. Bc4 {[%emt 0:00:47]} Nf6 {[%emt 0:00:09]} 4. d3 {[%emt 0:00:09]} Bc5 {[%emt 0:00:06]} 5. O-O {[%emt 0:00:14]} O-O {[%emt 0:00:24]} 6. Nbd2 {[%emt 0:00:46]} d6 {[%emt 0:00:54]} 7. c3 {[%emt 0:00:12]} a6 {[%emt 0:00:10]} 8. a4 $1 {[%emt 0:00:49][%mdl 4] is recently more successful than 8.Bb3. C54: Giuoco Piano: 4 c3 Nf6, main lines with 5 d4 and 5 d3.} Ba7 {[%emt 0:00:14]} 9. h3 {[%emt 0:01:02]} h6 {[%emt 0:00:12]} 10. Re1 {[%emt 0:00:39] The position is equal.} Re8 {[%emt 0:00:09]} 11. Qb3 {[%emt 0:01:25] [#]} Be6 $146 {[%emt 0:02:22]} (11... Qe7 $11 {feels stronger.}) ({Predecessor:} 11... Qd7 12. a5 b5 13. axb6 cxb6 14. Qd1 b5 15. Ba2 Bb7 16. Nf1 d5 17. exd5 Nxd5 {0-1 Chigaev,M (2631)-Nakamura,H (2750) Titled Tuesday intern op 19th Apr Late blitz 2022 (6)}) 12. Bxe6 $14 {[%emt 0:18:15]} (12. Qxb7 Na5 13. Qb4 Nxc4 14. Nxc4 Rb8 $11) 12... Rxe6 {[%emt 0:00:15]} 13. Qxb7 {[%emt 0:10:41]} Na5 {[%emt 0:00:06] Against Nc4} 14. Qb4 {[%emt 0:00:27]} c5 {[%emt 0:00:06]} 15. Qa3 {[%emt 0:00:09]} Rb8 {[%emt 0:00:05]} (15... d5 $14) 16. Rb1 {[%emt 0:02:24]} Re7 {[%emt 0:09:24]} 17. Nc4 {[%emt 0:06:19]} Nxc4 {[%emt 0:25:40]} 18. dxc4 {[%emt 0:00:18]} Qc8 {[%emt 0:00:04]} ({Black should play} 18... Bb6) 19. a5 $16 {[%emt 0:04:22]} Qc6 {[%emt 0:00:06]} 20. Nd2 {[%emt 0:00:32]} Reb7 {[%emt 0:09:29]} 21. Ra1 {[%emt 0:04:08]} ({White should try} 21. Qa2 $18) 21... Nh5 {[%emt 0:07:31]} 22. Qa4 {[%emt 0:02:18]} Qc8 {[%emt 0:02:58]} (22... Qxa4 $142 23. Rxa4 Nf4) 23. Qc2 {[%emt 0:07:26]} Qe6 {[%emt 0:00:49]} 24. Ra4 {[%emt 0:04:45]} Nf4 {[%emt 0:12:41]} 25. Kh2 {[%emt 0:01:55]} Qd7 {[%emt 0:04:54][%cal Of4d3]} 26. Ra3 {[%emt 0:02:08]} Qe6 {[%emt 0:00:50]} 27. b3 {[%emt 0:01:39]} Qg6 {[%emt 0:04:06][%csl Gf4][%cal Rg6g2]} 28. g3 {[%emt 0:00:40]} Nh5 {[%emt 0:01:01]} 29. Nf3 {[%emt 0:02:36]} Qf6 {[%emt 0:02:43]} 30. Kg2 {[%emt 0:00:38]} Re8 {[%emt 0:01:47]} 31. Qd3 {[%emt 0:03:34]} Qd8 {[%emt 0:02:20]} 32. Nh2 {[%emt 0:08:19]} Nf6 {[%emt 0:02:51]} 33. Bd2 {[%emt 0:03:14]} Qb8 {[%emt 0:01:59]} 34. Rb1 {[%emt 0:00:20]} Qc7 {[%emt 0:01:03]} 35. Ng4 {[%emt 0:04:02]} Nxg4 {[%emt 0:00:05]} 36. hxg4 {[%emt 0:00:05]} Qc6 {[%emt 0:02:16]} 37. Be3 {[%emt 0:01:01]} Rc8 {[%emt 0:00:10]} 38. Rd1 {[%emt 0:01:34]} Bb8 {[%emt 0:00:04]} 39. Qd5 {[%emt 0:01:30]} Qxd5 {[%emt 0:01:09]} 40. Rxd5 {[%emt 0:04:05]} (40. cxd5 Bc7 $16) 40... f6 {[%emt 0:01:31]} 41. Kf3 {[%emt 0:30:56]} Bc7 {[%emt 0:30:53]} 42. Bd2 {[%emt 0:01:22] White is more active.} Kf7 {[%emt 0:00:00]} 43. Ke2 {[%emt 0:00:00]} Ke6 {[%emt 0:00:00]} 44. Kd3 {[%emt 0:00:00] Black is weak on the light squares} Rh8 {[%emt 0:00:00]} 45. b4 {[%emt 0:00:00][%cal Bb3b4,Bb4b5,Bb5b6][%mdl 32]} h5 {[%emt 0:00:00]} 46. gxh5 {[%emt 0:00:00]} (46. bxc5 $6 hxg4 47. cxd6 Bxd6 $16) 46... Rxh5 {[%emt 0:00:00]} 47. Ke2 {[%emt 0:00:00]} (47. bxc5 dxc5 48. Ra2 Rh1) 47... Rh1 {[%emt 0:00:00] [#]} 48. b5 $1 {[%emt 0:00:00]} (48. bxc5 dxc5 49. Ra2 Rhb1 $16) 48... g6 {[%emt 0:00:00]} (48... axb5 $2 49. a6 Ra7 50. cxb5) 49. b6 {[%emt 0:00:00]} (49. bxa6 Ra7 $11) 49... Bd8 {[%emt 0:00:00]} 50. Be3 {[%emt 0:00:00] And now Bxc5 would win.} Be7 {[%emt 0:00:00]} 51. Rd1 {[%emt 0:00:00]} Rxd1 {[%emt 0:00:00]} 52. Kxd1 $18 {[%emt 0:00:00][%mdl 4096] Endgame KRB-KRB} Kd7 {[%emt 0:00:00]} 53. Ke2 {[%emt 0:00:00]} Rb8 {[%emt 0:00:00]} 54. Rb3 {[%emt 0:00:00]} Rh8 {[%emt 0:00:00]} 55. Kf3 {[%emt 0:00:00]} Bd8 {[%emt 0:00:00]} 56. Rb1 {[%emt 0:00:00]} Kc6 {[%emt 0:00:00]} 57. Kg4 {[%emt 0:00:33]} (57. b7 Bc7 $11) 57... Kb7 {[%emt 0:00:00]} 58. f4 {[%emt 0:02:25] Threatens to win with fxe5.} exf4 {[%emt 0:00:00]} 59. gxf4 {[%emt 0:00:07]} ({But not} 59. Bxf4 Kc6 60. Kf3 (60. b7 Bc7 $11) 60... Be7) ({Don't take} 59. Kxf4 Rh2 $16) 59... Rh2 {[%emt 0:04:30]} (59... f5+ {was necessary.} 60. exf5 Rh4+ 61. Kf3 gxf5) 60. Rd1 {[%emt 0:01:42]} Kc6 {[%emt 0:00:03] [#]} 61. e5 $1 {[%emt 0:02:12][%mdl 512]} Be7 {[%emt 0:00:06]} 62. Rb1 {[%emt 0:01:03]} Kb7 {[%emt 0:01:05]} 63. e6 {[%emt 0:00:13] Black must now prevent Kg3.} f5+ {[%emt 0:01:20]} 64. Kg3 {[%emt 0:00:25]} Rh8 {[%emt 0:00:54]} 65. Kg2 {[%emt 0:02:20]} Bf6 {[%emt 0:00:39]} (65... Re8 $142) 66. Rd1 {[%emt 0:02:39]} Rd8 {[%emt 0:02:53]} 67. Kf3 {[%emt 0:00:31] Bd2 would be deadly.} Kc6 {[%emt 0:00:25] [#]} 68. Bd2 $1 {[%emt 0:01:26]} Rh8 $2 {[%emt 0:01:53]} (68... Kb7 69. Rh1 Kb8) 69. Rg1 {[%emt 0:00:12]} Rh6 {[%emt 0:01:09]} 70. Kg2 {[%emt 0:00:28]} (70. Rg3 $142 Kb7 71. Rg2) 70... Rh7 {[%emt 0:00:21]} 71. Kf2 {[%emt 0:00:20]} Rh2+ $2 {[%emt 0:00:44]} (71... Rg7 {keeps fighting.} 72. Ke2 Rg8) 72. Rg2 {[%emt 0:00:01] White is clearly winning.} Rh6 {[%emt 0:00:24]} 73. Kg1 {[%emt 0:00:23] aiming for Rh2.} Be7 {[%emt 0:00:36]} (73... Rh8 $142 74. Rxg6 Bd8) 74. Rh2 {[%emt 0:01:08]} Rxh2 {[%emt 0:00:31]} 75. Kxh2 {[%emt 0:00:01] Weighted Error Value: White=0.07 (flawless) /Black=0.13 (very precise)} 1-0